Workbook

Sheet Sayfa1
A1: TERME TİCARET BORSASI
A2: AYLAR İTİBARİYLE BORSALARDA MÜSTAHSİL SATIŞI OLARAK İŞLEM GÖREN 2011 YILI MAHSULÜ KABUKLU FINDIK MİKTARLARINI GÖSTERİR LİSTE
A4: 2010 ÜRÜNÜ | B4: 2011 Ağustos | C4: 2011 Eylül | D4: 2011 Ekim | E4: 2011 Kasım | F4: 2011 Aralık | G4: 2012 Ocak | H4: 2012 Şubat | I4: 2012 Mart | J4: 2012 Nisan | K4: 2012 Mayıs | L4: 2012 Haziran | M4: 2012 Temmuz | N4: 2012 Ağustos | O4: TOPLAM
A5: İL/İLÇE
A6: RİZE | B6: 108688 | C6: 623816 | D6: 454141 | E6: 505655 | F6: 523319 | G6: 377456 | H6: 0 | I6: 26846 | J6: 541 | K6: 19652 | L6: 188233 | O6: =SUM(B6:N6) -> 2828347
A7: TRABZON | B7: 110907 | C7: 5677649 | D7: 8163530 | E7: 5616912 | F7: 9042074 | G7: 2553742 | H7: 1751850 | I7: 1358511 | J7: 1397035 | K7: 1394454 | L7: 2083773 | O7: =SUM(B7:N7) -> 39150437
A8: GİRESUN | B8: 171011 | C8: 13820985 | D8: 15701623 | E8: 9755874 | F8: 7745342 | G8: 3402754 | H8: 2889581 | I8: 2527848 | J8: 2830834 | K8: 2621982 | L8: 2775331 | O8: 64243165
A9: ORDU | B9: 237369 | C9: 16200824 | D9: 22462568 | E9: 14057837 | F9: 14193084 | G9: 5537264 | H9: 7279242 | I9: 5992132 | J9: 5786483 | K9: 4086747 | L9: 4100909 | O9: 99934459
A10: FATSA | B10: 110686 | C10: 7066302 | D10: 4255264 | E10: 2091822 | F10: 2062419 | G10: 1466311 | H10: 1477330 | I10: 1138840 | J10: 1337529 | K10: 926884 | L10: 1234439 | O10: 23167826
A11: ÜNYE | B11: 308717 | C11: 8361412 | D11: 6807605 | E11: 3766742 | F11: 4491959 | G11: 1735397 | H11: 2186270 | I11: 2459624 | J11: 1979915 | K11: 1030997 | L11: 1094669 | O11: 34223307
A12: TERME | B12: 112733 | C12: 7343038 | D12: 3870191 | E12: 2242965 | F12: 4045890 | G12: 1524224 | H12: 1272138 | I12: 1594648 | J12: 616907 | K12: 271123 | L12: 361702 | O12: 23255559
A13: ÇARŞAMBA | B13: 142788 | C13: 12286406 | D13: 9695652 | E13: 5636075 | F13: 3740975 | G13: 2141468 | H13: 2883804 | I13: 1777590 | J13: 1321453 | K13: 740871 | L13: 571820 | O13: 40938902
A14: SAMSUN | B14: 0 | C14: 3345984 | D14: 2627113 | E14: 1589998 | F14: 1378692 | G14: 570220 | H14: 918429 | I14: 909702 | J14: 601290 | K14: 121910 | L14: 24660 | O14: 12087998
A15: BAFRA | B15: 0 | C15: 0 | D15: 0 | E15: 0 | F15: 0 | G15: 0 | H15: 0 | I15: 0 | J15: 0 | K15: 0 | L15: 0 | O15: 0
A16: TOPLAM | B16: =SUM(B6:B15) -> 1302899 | C16: 74726416 | D16: 74037687 | E16: 45263880 | F16: 47223754 | G16: 19308836 | H16: =SUM(H6:H15) -> 20658644 | I16: 17785741 | J16: 15871987 | K16: 11214620 | L16: 12435536 | M16: 0 | N16: 0 | O16: 339830000
A17: DÜZCE | B17: 2291446 | C17: 12628101 | D17: 15907280 | E17: 10746434 | F17: 7789429 | G17: 2871441 | H17: 3220389 | I17: 2901757 | J17: 2950785 | K17: 2096122 | L17: 1468968 | O17: 64872152
A18: AKYAZI | B18: 657397 | C18: 1127902 | D18: 551765 | E18: 636701 | F18: 380678 | G18: 235575 | H18: 311497 | I18: 303661 | J18: 79938 | K18: 135269 | L18: 65450 | O18: 4485833
A19: SAKARYA | B19: 1308050 | C19: 13286357 | D19: 10888827 | E19: 6821977 | F19: 4793363 | G19: 1859313 | H19: 2288975 | I19: 2764772 | J19: 2696877 | K19: 1922964 | L19: 1795304 | O19: 50426779
A20: KASTAMONU | B20: 0 | C20: 0 | D20: 0 | E20: 8230 | F20: 26680 | G20: 0 | H20: 0 | I20: 9670 | J20: 3540 | K20: 0 | L20: 0 | O20: 48120
A21: TOPLAM | B21: =SUM(B17:B20) -> 4256893 | C21: 27042360 | D21: 27347872 | E21: 18213342 | F21: 12990150 | G21: 4966329 | H21: =SUM(H17:H20) -> 5820861 | I21: =SUM(I17:I20) -> 5979860 | J21: =SUM(J17:J20) -> 5731140 | K21: =SUM(K17:K20) -> 4154355 | L21: =SUM(L17:L20) -> 3329722 | O21: =SUM(O17:O20) -> 119832884
A22: G. TOPLAM | B22: =SUM(B16+B21) -> 5559792 | C22: 101768776 | D22: 101385559 | E22: 63477222 | F22: 60213904 | G22: 24275165 | H22: 26479505 | I22: 23765601 | J22: 21603127 | K22: 15368975 | L22: 15765258 | M22: 0 | N22: 0 | O22: 459662884
B23: Kaynak: İlgili Ticaret Borsaları
A25: Tarım ve Köyişleri Bakanlığı İl Müdürlüklerince Yapılan Türkiye Fındık Rekolteleri
A27: İLLER | B27: 2005 TON/KAB. | C27: 2006 TON/KAB. | D27: 2007 TON/KAB. | E27: 2008 TON/KAB. | F27: 2009 TON/KAB. | G27: 2010 TON/KAB. | H27: 2011 TON/KAB. | I27: 2012 TON/KAB.
A28: ARTVİN | B28: 6450 | C28: 7240 | D28: 7821 | E28: 8350 | F28: 11572 | G28: 9954 | H28: 8745
A29: RİZE | B29: 910 | C29: 1415 | D29: 1322 | E29: 1408 | F29: 2147 | G29: 2566 | H29: 2121
A30: TRABZON | B30: 47863 | C30: 55006 | D30: 42491 | E30: 74307 | F30: 36307 | G30: 45730 | H30: 33768
A31: GİRESUN | B31: 81305 | C31: 86723 | D31: 64131 | E31: 139764 | F31: 76273 | G31: 63776 | H31: 53733 | I31: 110168031
A32: ORDU | B32: 172128 | C32: 188060 | D32: 140000 | E32: 210583 | F32: 91758 | G32: 201183 | H32: 128190
A33: SAMSUN | B33: 65034 | C33: 79312 | D33: 37714 | E33: 115706 | F33: 71656 | G33: 82693 | H33: 78926
A34: SİNOP | B34: 1295 | C34: 1322 | D34: 1758 | E34: 1615 | F34: 1847 | G34: 1567 | H34: 605
A35: KASTAMONU | B35: 1972 | C35: 5895 | D35: 4519 | E35: 5396 | F35: 4288 | G35: 6465 | H35: 4300
A36: BARTIN | B36: 1586 | C36: 2166 | D36: 3082 | E36: 2852 | F36: 3455 | G36: 3530 | H36: 3621
A37: DÜZCE | B37: 53850 | C37: 78416 | D37: 71213 | E37: 90972 | F37: 72689 | G37: 80368 | H37: 52023
A38: ADAPAZARI | B38: 62682 | C38: 113988 | D38: 88245 | E38: 115262 | F38: 84012 | G38: 117231 | H38: 55789
A39: ZONGULDAK | B39: 18444 | C39: 23108 | D39: 21457 | E39: 24736 | F39: 21291 | G39: 25886 | H39: 22376
A40: KOCAELİ | B40: 11458 | C40: 12341 | D40: 14659 | E40: 13595 | F40: 13581 | G40: 13598 | H40: 8649
A41: G.TOPLAM | B41: =SUM(B28:B40) -> 524977 | C41: =SUM(C28:C40) -> 654992 | D41: 498412 | E41: 804546 | F41: 490876 | G41: 654547 | H41: =SUM(H28:H40) -> 452846 | I41: =SUM(I28:I40) -> 110168031
A42: GERÇEKLEŞEN RESMİ TOPLAM | B42: 576911 | C42: 803376 | D42: 556301 | E42: 878023 | F42: 440413 | G42: 637427 | H42: =O22 -> 459662884 | J42: TERME TİCARET BORSASI

Sheet Sayfa2

Sheet Sayfa3
